bitfinex-derivatives/quotes_SOLF0:USTF0_20240923
["timestamp","ask_amount","ask_price","bid_price","bid_amount"]
[1727097310371,7.54,142.78,142.75,3.503]
[1727097310577,7.54,142.78,142.72,7.54]
[1727097311486,11.0425,142.78,142.72,7.54]
[1727097313480,11.0425,142.78,142.75,3.5031]
[1727097313876,2.811,142.81,142.75,7.54]
[1727097314080,2.811,142.81,142.76,7.54]
[1727097314081,8.9076,142.81,142.76,7.54]
[1727097314383,11.0419,142.8,142.77,3.5025]
[1727097314686,7.54,142.8,142.75,7.54]
[1727097315083,11.0423,142.79,142.75,11.043]
[1727097315587,7.54,142.79,142.73,7.54]
[1727097315776,11.0426,142.78,142.74,3.5032]
[1727097315980,7.54,142.78,142.73,7.54]
[1727097316174,7.54,142.79,142.74,7.54]
[1727097316379,7.54,142.79,142.76,3.5027]
[1727097316779,3.5021,142.8,142.76,3.5027]
[1727097316978,7.54,142.78,142.76,3.5027]
[1727097317387,7.54,142.77,142.73,7.54]
[1727097317785,7.54,142.78,142.74,7.54]
[1727097317978,7.54,142.79,142.74,7.54]
[1727097318387,11.0421,142.79,142.75,3.503]
[1727097318890,7.54,142.77,142.7,4.1347]
[1727097319188,7.54,142.77,142.72,7.54]
[1727097319387,7.54,142.77,142.74,3.5032]
[1727097320094,11.0428,142.77,142.74,3.5032]
[1727097321486,7.54,142.77,142.75,3.5031]
[1727097323094,7.54,142.77,142.73,3.5035]
[1727097323687,3.5029,142.76,142.73,3.5035]
[1727097324284,3.5031,142.75,142.72,11.0437]
[1727097324686,3.5031,142.75,142.72,3.5037]
[1727097324994,7.54,142.73,142.67,7.54]
[1727097325191,7.54,142.73,142.68,7.54]
[1727097325500,7.54,142.73,142.68,11.0447]
[1727097326295,2.8092,142.74,142.67,7.54]
[1727097326296,7.54,142.71,142.67,7.54]
[1727097326495,7.54,142.71,142.63,2.7428]
[1727097326496,7.54,142.71,142.64,6.68835981]
[1727097326793,7.54,142.71,142.66,11.0452]
[1727097327099,3.5045,142.7,142.66,11.0452]
[1727097327496,7.54,142.7,142.64,6.68726287]
[1727097327690,7.54,142.7,142.63,2.7428]
[1727097327691,7.54,142.7,142.65,7.54]
[1727097327994,1.3926,142.73,142.66,11.0451]
[1727097328293,3.5044,142.7,142.66,7.54]
[1727097328494,7.54,142.71,142.66,11.0453]
[1727097328886,3.5047,142.69,142.65,7.54]
[1727097329089,7.54,142.7,142.65,7.54]
[1727097329290,7.54,142.71,142.67,7.54]
[1727097329490,11.0442,142.71,142.67,7.54]
[1727097329793,7.54,142.71,142.67,7.54]
[1727097330099,3.5041,142.71,142.68,11.0446]
[1727097330703,3.5041,142.71,142.67,11.045]
[1727097331499,2.8092,142.74,142.68,7.54]
[1727097331695,7.54,142.73,142.69,7.54]
[1727097332092,11.0437,142.73,142.7,3.5042]
[1727097332608,7.54,142.76,142.71,7.54]
[1727097332893,7.54,142.76,142.73,3.5035]
[1727097333699,3.503,142.76,142.73,3.5035]
[1727097333904,7.54,142.74,142.68,1.3345]
[1727097334111,11.0434,142.74,142.69,7.54]
[1727097334595,11.0434,142.74,142.7,3.5042]
[1727097335201,3.5036,142.73,142.7,3.5042]
[1727097335605,7.54,142.74,142.7,3.5042]
[1727097335805,11.0435,142.74,142.69,7.54]
[1727097336789,11.0435,142.74,142.71,3.5039]
[1727097336997,7.54,142.74,142.71,3.5039]
[1727097337497,11.0432,142.75,142.72,3.5038]
[1727097337894,8.9545,142.79,142.75,3.503]
[1727097338402,11.0423,142.79,142.74,7.54]
[1727097338604,11.0423,142.79,142.76,3.5027]
[1727097338904,11.0425,142.78,142.73,7.54]
[1727097339300,11.0425,142.78,142.74,3.5032]
[1727097339701,11.0425,142.78,142.73,7.54]
[1727097339894,11.0425,142.78,142.75,3.5031]
[1727097340803,7.54,142.78,142.76,3.5029]
[1727097340994,7.54,142.78,142.73,7.54]
[1727097341502,7.54,142.77,142.71,3.47563669]
[1727097341804,7.54,142.74,142.7,7.54]
[1727097341994,7.54,142.74,142.69,7.54]
[1727097342899,7.54,142.73,142.69,7.54]
[1727097343209,7.54,142.73,142.68,1.3345]
[1727097343596,7.54,142.73,142.69,3.5045]
[1727097343597,11.0437,142.73,142.69,3.5045]
[1727097344506,3.504,142.72,142.68,3.5047]
[1727097344895,3.5037,142.73,142.69,3.5044]
[1727097345206,11.0437,142.73,142.69,3.5044]
[1727097346411,11.0435,142.74,142.7,7.54]
[1727097346612,7.54,142.74,142.7,7.54]
[1727097346913,7.54,142.74,142.71,3.504]
[1727097347613,11.0435,142.74,142.71,3.504]
[1727097347804,7.54,142.75,142.7,7.54]
[1727097347999,11.0432,142.75,142.7,7.54]
[1727097348409,11.0432,142.75,142.72,3.5036]
[1727097348608,7.54,142.75,142.7,7.54]
[1727097349007,7.54,142.75,142.72,3.5037]
[1727097349405,11.0433,142.75,142.72,3.5037]
[1727097349711,7.54,142.75,142.72,3.5037]
[1727097350406,7.54,142.74,142.72,3.5037]
[1727097350610,7.54,142.73,142.69,7.54]
[1727097350811,11.0437,142.73,142.69,7.54]
[1727097351112,11.0437,142.73,142.7,3.5042]
[1727097351308,7.54,142.73,142.69,7.54]
[1727097351612,11.0436,142.73,142.69,7.54]
[1727097352005,11.0436,142.73,142.7,3.5043]
[1727097352814,7.54,142.76,142.7,7.54]
[1727097353319,3.5031,142.75,142.72,3.5037]
[1727097354013,7.54,142.75,142.7,7.54]
[1727097354612,11.0432,142.75,142.72,3.5038]
[1727097355517,7.54,142.77,142.72,7.54]
[1727097356118,11.0427,142.77,142.74,3.5032]
[1727097356419,1.3451,142.79,142.72,7.54]
[1727097356721,8.8851,142.79,142.74,7.54]
[1727097356917,7.54,142.78,142.74,7.54]
[1727097357115,7.54,142.78,142.75,3.5029]
[1727097357718,3.5026,142.77,142.75,3.5029]
[1727097358417,1.3824,142.8,142.73,7.54]
[1727097358722,7.54,142.78,142.74,7.54]
[1727097358922,7.54,142.77,142.73,7.54]
[1727097359112,7.54,142.77,142.72,1.3967]
[1727097359420,7.54,142.77,142.71,9.012]
[1727097359421,7.54,142.76,142.71,1.472]
[1727097359625,7.54,142.76,142.7,7.54]
[1727097359816,3.5033,142.75,142.72,3.5037]
[1727097360922,11.0429,142.76,142.73,3.5035]
[1727097361117,7.54,142.78,142.74,7.54]
[1727097361311,7.54,142.77,142.72,7.54]
[1727097361713,7.54,142.75,142.71,7.54]
[1727097362813,11.0433,142.75,142.72,3.5038]
[1727097363420,11.0433,142.75,142.71,11.044]
[1727097364017,7.54,142.72,142.67,2.7763]
[1727097364224,7.54,142.72,142.67,10.3163]
[1727097364722,7.54,142.71,142.63,1.3505]
[1727097364930,7.54,142.71,142.66,7.54]
[1727097365434,11.0442,142.71,142.67,3.5049]
[1727097365627,3.5042,142.71,142.67,11.0449]
[1727097365831,3.5042,142.71,142.67,7.54]
[1727097366721,1.3341,142.78,142.68,7.54]
[1727097366918,7.54,142.77,142.71,7.54]
[1727097367328,3.503,142.76,142.72,7.54]
[1727097367524,3.503,142.76,142.66,6.68360162]
[1727097367525,8.8741,142.78,142.73,7.54]
[1727097368125,1.3824,142.8,142.73,7.54]
[1727097368324,8.9224,142.8,142.74,7.54]
[1727097369119,7.54,142.79,142.74,7.54]
[1727097369327,7.54,142.79,142.75,3.5029]
[1727097369328,3.5024,142.78,142.75,3.5029]
[1727097371429,3.5024,142.78,142.76,3.5028]
[1727097372334,3.5024,142.78,142.75,3.503]
[1727097373035,3.5024,142.78,142.76,3.5029]
[1727097375424,1.3824,142.8,142.72,11.78]
[1727097376430,3.5025,142.78,142.72,11.78]
[1727097377737,1.4471,142.82,142.74,11.78]
[1727097378238,3.5024,142.78,142.75,3.503]
[1727097379328,11.78,142.79,142.72,11.78]
[1727097379836,3.5031,142.75,142.73,3.5035]
[1727097380036,11.78,142.78,142.71,2.839]
[1727097380237,11.78,142.78,142.68,92.19700901]
[1727097380439,11.78,142.76,142.68,92.19700901]
[1727097380642,11.78,142.74,142.68,80.41700901]
[1727097380835,3.5042,142.71,142.68,83.92180901]
[1727097381232,3.5042,142.71,142.68,80.41700901]
[1727097381540,3.5044,142.7,142.65,14.4744]
[1727097382038,13.1249,142.74,142.65,14.4744]
[1727097382336,13.1249,142.74,142.67,11.78]
[1727097382337,1.3449,142.74,142.67,11.78]
[1727097382534,3.504,142.72,142.68,3.5046]
[1727097382839,1.4281,142.75,142.67,11.78]
[1727097383137,3.5037,142.73,142.7,3.5043]
[1727097383634,1.4281,142.75,142.69,11.78]
[1727097383840,3.5033,142.75,142.71,3.5039]
[1727097384034,3.5033,142.75,142.69,11.78]
[1727097384543,3.5033,142.75,142.72,3.5038]
[1727097384932,3.5034,142.74,142.72,3.5038]
[1727097385941,3.5034,142.74,142.71,3.504]
[1727097386734,11.78,142.78,142.69,11.78]
[1727097387138,2.7817,142.79,142.71,11.78]
[1727097387644,3.5028,142.77,142.74,3.5033]
[1727097387946,1.4368,142.79,142.73,11.78]
[1727097388243,13.2191,142.81,142.73,11.78]
[1727097388445,3.5024,142.78,142.76,3.5027]
[1727097388634,13.2191,142.81,142.73,11.78]
[1727097389238,3.5027,142.77,142.74,3.5032]
[1727097390347,11.78,142.77,142.68,93.53969902]
[1727097390640,3.5035,142.74,142.71,3.5039]
[1727097390847,11.78,142.77,142.69,11.78]
[1727097391145,3.5037,142.73,142.7,3.5042]
[1727097392147,11.78,142.77,142.68,81.75969902]
[1727097392340,11.78,142.75,142.68,80.41659902]
[1727097392747,3.504,142.72,142.69,3.5045]
[1727097393742,3.5038,142.73,142.69,3.5045]
[1727097395654,14.5532,142.79,142.7,11.78]
[1727097396952,3.5031,142.75,142.72,3.5037]
[1727097397845,3.5034,142.74,142.71,3.504]
[1727097398045,11.78,142.78,142.69,13.1686]
[1727097398454,11.78,142.78,142.7,3.5041]
[1727097398755,2.7732,142.79,142.7,3.5041]
[1727097398756,11.78,142.76,142.7,3.5041]
[1727097399254,3.5036,142.74,142.7,3.5041]
[1727097399756,3.5036,142.74,142.71,3.5041]
[1727097402453,2.7732,142.79,142.7,15.27316386]
[1727097402646,2.7732,142.79,142.7,11.78]
[1727097402859,3.5029,142.76,142.73,3.5034]
[1727097404355,3.5034,142.74,142.71,3.504]
[1727097406163,3.5032,142.75,142.72,3.5038]
[1727097409059,11.78,142.78,142.72,3.5038]
[1727097409060,3.5034,142.74,142.72,3.5038]
[1727097409560,3.5032,142.75,142.72,3.5038]
[1727097411358,11.78,142.78,142.73,3.5036]
[1727097411359,3.503,142.76,142.73,3.5036]
[1727097411862,3.503,142.76,142.7,11.78]
[1727097412168,3.503,142.76,142.73,3.5034]
[1727097412461,3.5027,142.77,142.7,16.70080894]
[1727097412671,2.7732,142.79,142.73,3.5034]
[1727097413166,3.503,142.76,142.73,3.5034]
[1727097414562,3.5032,142.75,142.73,3.5034]
[1727097415666,2.7732,142.79,142.7,16.70080894]
[1727097416553,2.7732,142.79,142.73,3.5035]
[1727097417560,3.5031,142.76,142.73,3.5035]
[1727097419271,3.5031,142.76,142.74,3.5033]
[1727097421572,3.5031,142.76,142.72,7.54]
[1727097421573,7.54,142.75,142.7,8.9409]
[1727097421766,7.54,142.76,142.72,7.54]
[1727097421962,3.503,142.76,142.73,3.5035]
[1727097422168,3.503,142.76,142.72,7.54]
[1727097422670,3.503,142.76,142.73,3.5034]
[1727097423286,3.5032,142.75,142.72,3.5037]
[1727097423465,7.54,142.73,142.68,80.41659902]
[1727097423661,2.7732,142.79,142.69,7.54]
[1727097423875,7.54,142.75,142.72,3.5038]
[1727097424372,7.54,142.75,142.73,3.5036]
[1727097424566,2.7732,142.79,142.73,3.5036]
[1727097424766,7.54,142.77,142.72,7.54]
[1727097425069,7.54,142.74,142.69,1.332]
[1727097425274,7.54,142.74,142.69,8.872]
[1727097425668,3.5037,142.73,142.71,3.504]
[1727097426570,3.5037,142.73,142.69,1.332]
[1727097426571,7.54,142.76,142.72,11.0438]
[1727097426970,3.5033,142.75,142.72,7.54]
[1727097427173,3.5033,142.75,142.72,11.0437]
[1727097428482,3.5034,142.74,142.72,11.0437]
[1727097430275,3.5034,142.74,142.72,3.5037]
[1727097430473,3.5034,142.74,142.69,8.872]
[1727097430474,7.54,142.74,142.69,8.872]
[1727097430674,7.54,142.74,142.69,7.54]
[1727097430874,7.54,142.74,142.69,11.0444]
[1727097431174,3.504,142.72,142.69,11.0444]
[1727097431575,3.504,142.72,142.7,3.5043]
[1727097431873,2.7732,142.79,142.71,7.54]
[1727097431874,3.5038,142.73,142.71,7.54]
[1727097432070,7.54,142.75,142.71,7.54]
[1727097432270,7.54,142.74,142.7,3.5043]
[1727097432472,3.5038,142.73,142.7,3.5043]
[1727097432874,7.54,142.74,142.69,11.0445]
[1727097433071,3.5039,142.72,142.69,11.0445]
[1727097434882,2.7732,142.79,142.69,7.54]
[1727097435181,7.54,142.77,142.71,7.54]
[1727097435379,3.5028,142.77,142.73,3.5034]
[1727097435592,7.54,142.78,142.73,3.5034]
[1727097437280,3.5031,142.76,142.73,3.5034]
[1727097439376,7.54,142.76,142.72,3.5038]
[1727097440286,3.5032,142.75,142.72,3.5038]
[1727097441384,3.5033,142.74,142.72,3.5038]
[1727097442284,3.5032,142.75,142.73,3.5035]
[1727097442477,7.54,142.78,142.73,3.5035]
[1727097442686,7.54,142.78,142.72,7.54]
[1727097442987,3.5027,142.77,142.74,11.0432]
[1727097443187,10.3132,142.79,142.74,7.54]
[1727097443383,1.4391,142.81,142.75,7.54]
[1727097443591,7.54,142.8,142.75,7.54]
[1727097443777,1.4391,142.81,142.75,7.54]
[1727097443980,3.5025,142.78,142.75,11.0429]
[1727097445589,7.54,142.8,142.75,11.0429]
[1727097446784,3.5026,142.78,142.75,11.0429]
[1727097448691,3.5026,142.78,142.76,3.5029]
[1727097449285,2.8142,142.84,142.77,3.5026]
[1727097449489,7.54,142.81,142.77,3.5026]
[1727097450088,7.54,142.81,142.76,7.54]
[1727097450089,7.54,142.81,142.78,3.5022]
[1727097450389,2.8142,142.84,142.79,7.54]
[1727097450586,3.5018,142.81,142.79,7.54]
[1727097451495,3.5018,142.81,142.79,11.042]
[1727097452383,7.54,142.83,142.8,3.5018]
[1727097452587,7.54,142.83,142.78,7.54]
[1727097452889,3.5023,142.79,142.77,3.5025]
[1727097453092,2.8142,142.84,142.72,2.9423]
[1727097453093,7.54,142.78,142.72,2.9423]
[1727097453291,2.8142,142.84,142.72,10.4823]
[1727097453292,7.54,142.77,142.72,10.4823]
[1727097453894,3.5029,142.76,142.73,3.5035]
[1727097454491,3.5029,142.76,142.74,3.5033]
[1727097455094,3.5031,142.75,142.73,7.54]
[1727097455288,7.54,142.74,142.69,7.54]
[1727097455886,7.54,142.75,142.7,3.5041]
[1727097456188,7.54,142.75,142.71,7.54]
[1727097456387,3.5033,142.75,142.72,7.54]
[1727097457100,3.5034,142.74,142.7,11.0442]
[1727097461599,3.5037,142.73,142.7,3.5042]
[1727097462787,7.54,142.71,142.57,84.1]
[1727097462987,7.54,142.69,142.61,4.1902]
[1727097463188,7.54,142.69,142.63,14.23862409]
[1727097463391,1.4173,142.71,142.65,7.54]
[1727097463596,7.54,142.74,142.68,7.54]
[1727097464194,7.54,142.74,142.68,11.0446]
[1727097464499,7.54,142.74,142.69,7.54]
[1727097464702,1.4555,142.75,142.61,7.61594109]
[1727097464703,2.8668,142.79,142.73,7.54]
[1727097464997,7.54,142.77,142.72,7.54]
[1727097465298,7.54,142.77,142.72,11.0437]
[1727097465299,3.5031,142.75,142.72,11.0437]
[1727097465596,10.4068,142.79,142.74,7.54]
[1727097465795,7.54,142.77,142.73,7.54]
[1727097466103,7.54,142.79,142.74,7.54]
[1727097466401,7.54,142.8,142.75,7.54]
[1727097466701,15.29066947,142.85,142.79,11.0419]
[1727097466702,11.0413,142.83,142.79,11.0419]
[1727097467096,3.5015,142.82,142.79,11.0419]
[1727097467296,3.5015,142.82,142.78,11.0423]
[1727097467692,11.0412,142.83,142.79,7.54]
[1727097468301,3.5012,142.83,142.77,11.77]
[1727097468798,3.5012,142.83,142.8,3.5018]
[1727097469597,3.5012,142.83,142.75,7.64905728]
[1727097469796,3.5012,142.83,142.77,11.77]
[1727097470301,3.5012,142.83,142.79,3.5019]
[1727097470901,3.5012,142.83,142.77,11.77]
[1727097471303,3.5012,142.83,142.79,3.5019]
[1727097471601,3.5009,142.84,142.79,11.77]
[1727097471802,3.5009,142.84,142.8,3.5017]
[1727097472806,3.5009,142.84,142.81,3.5016]
[1727097476500,6.9965,142.95,142.82,11.77]
[1727097476702,11.77,142.93,142.84,11.77]
[1727097476997,3.4995,142.9,142.84,11.77]
[1727097477200,4.1413,142.94,142.86,11.77]
[1727097477498,22.2602,143.02,142.81,4.1836]
[1727097477499,3.4988,142.93,142.9,3.4993]
[1727097478092,3.4984,142.95,142.88,11.77]
[1727097478297,2.7462,142.99,142.85,3.56487936]
[1727097478298,2.7462,142.99,142.9,11.77]
[1727097478508,2.7462,142.99,142.91,11.77]
[1727097478799,14.5162,142.99,142.9,11.77]
[1727097479998,3.4981,142.96,142.92,3.4988]
[1727097480499,14.5162,142.99,142.9,11.77]
[1727097480997,3.4987,142.94,142.9,15.2693]
[1727097481193,3.4987,142.94,142.9,11.77]
[1727097481402,3.4983,142.95,142.91,3.499]
[1727097481600,3.4983,142.95,142.9,11.77]
[1727097481997,3.4987,142.94,142.9,11.77]
[1727097482198,11.77,142.97,142.89,2.87]
[1727097482605,3.4988,142.93,142.89,6.3695]
[1727097482901,11.77,142.95,142.88,1.3965]
[1727097483602,11.77,142.97,142.88,13.1665]
[1727097484108,3.4987,142.93,142.9,3.4993]
[1727097484306,11.77,142.97,142.88,13.1665]
[1727097484809,3.4989,142.93,142.88,13.1665]
[1727097485305,11.77,142.97,142.88,13.1665]
[1727097485605,11.77,142.97,142.89,3.4994]
[1727097486503,11.77,142.95,142.86,11.77]
[1727097486905,3.4995,142.9,142.87,3.5001]
[1727097487109,2.7462,142.99,142.83,4.90696825]
[1727097487110,11.77,142.93,142.84,11.77]
[1727097487713,11.77,142.95,142.86,11.77]
[1727097488211,3.4994,142.91,142.88,3.4999]
[1727097488399,2.7462,142.99,142.88,11.77]
[1727097488605,11.77,142.98,142.88,11.77]
[1727097489411,3.4988,142.93,142.9,3.4992]
[1727097489799,3.4988,142.93,142.89,11.77]
[1727097490008,3.4988,142.93,142.9,3.4994]
[1727097490410,3.4989,142.92,142.83,4.9279714]
[1727097490607,3.4989,142.92,142.89,3.4996]
[1727097492516,3.4988,142.93,142.9,3.4993]
[1727097493710,3.4989,142.92,142.9,3.4993]
[1727097493917,11.77,142.98,142.91,3.4991]
[1727097494109,2.7462,142.99,142.91,11.77]
[1727097494309,3.4982,142.95,142.91,11.77]
[1727097494513,3.4982,142.95,142.92,3.4988]
[1727097495215,14.5162,142.99,142.89,13.1394]
[1727097496012,14.5162,142.99,142.92,11.77]
[1727097496217,8.3466,143.01,142.92,11.77]
[1727097496218,1.3528,143.01,142.92,11.77]
[1727097496415,3.4983,142.95,142.93,3.4986]
[1727097497015,11.77,142.97,142.9,11.77]
[1727097497519,11.77,142.99,142.9,11.77]
[1727097497714,13.1228,143.01,142.91,11.77]
[1727097497919,16.54267611,143.01,142.91,11.77]
[1727097498417,3.4981,142.96,142.91,15.34844355]
[1727097498816,3.4981,142.96,142.93,3.4986]
[1727097499213,3.4978,142.97,142.93,11.77]
[1727097499410,3.4978,142.97,142.94,3.4984]
[1727097499920,3.4974,142.99,142.95,11.77]
[1727097500224,14.5565,143.04,142.91,3.4762323]
[1727097500225,14.5565,143.04,142.97,11.77]
[1727097500422,2.7865,143.04,142.97,11.77]
[1727097500614,2.7865,143.04,142.97,15.2676]
[1727097500615,3.4971,143.0,142.97,15.2676]
[1727097501212,2.7865,143.04,142.99,3.4972]
[1727097501515,2.7865,143.04,142.97,11.77]
[1727097501720,3.4969,143.01,142.98,3.4974]
[1727097502112,1.4501,143.04,142.99,11.77]
[1727097502316,3.4969,143.01,142.99,11.77]
[1727097502512,1.4501,143.04,142.99,11.77]
[1727097502818,1.4501,143.04,142.98,3.4973]
[1727097503116,13.2201,143.04,142.95,16.1194]
[1727097503512,11.77,143.02,142.95,4.9722]
[1727097503716,11.77,143.02,142.95,3.4982]
[1727097504023,3.4976,142.98,142.95,3.4982]
[1727097504218,3.4976,142.98,142.96,3.498]
[1727097504625,3.4976,142.98,142.93,11.77]
[1727097504815,11.77,143.02,142.93,11.77]
[1727097505320,3.4978,142.97,142.94,3.4982]
[1727097505520,3.4978,142.97,142.93,11.77]
[1727097506121,11.77,143.0,142.91,11.77]
[1727097506423,11.77,142.98,142.91,3.4991]
[1727097507027,3.4984,142.95,142.92,3.4989]
[1727097508621,3.4979,142.97,142.91,11.77]
[1727097508827,1.3694,143.0,142.93,11.77]
[1727097509025,1.3438,143.01,142.93,11.77]
[1727097509220,1.3438,143.01,142.95,3.498]
[1727097509421,3.4976,142.98,142.95,3.498]
[1727097510533,1.3438,143.01,142.95,3.498]
[1727097510534,3.4977,142.97,142.95,3.498]
[1727097511227,13.1138,143.01,142.92,11.77]
[1727097511433,16.65288996,143.01,142.92,11.77]
[1727097512230,16.65288996,143.01,142.93,3.4987]
[1727097513029,3.4983,142.95,142.92,15.2688]
[1727097515728,3.4985,142.94,142.92,15.2688]
[1727097515929,11.77,142.99,142.9,16.0368]
[1727097516128,13.2379,142.98,142.9,16.0368]
[1727097516324,3.4986,142.94,142.91,3.499]
[1727097517533,3.4984,142.95,142.92,3.4988]
[1727097519042,3.4984,142.95,142.9,16.0368]
[1727097519043,3.4984,142.95,142.93,3.4987]
[1727097519238,3.4984,142.94,142.9,16.0368]
[1727097519434,3.4984,142.94,142.92,3.4988]
[1727097520141,3.4983,142.95,142.93,3.4987]
[1727097523137,3.4981,142.96,142.94,3.4984]
[1727097523646,3.4982,142.95,142.93,3.4986]
[1727097524245,3.4981,142.96,142.93,3.4986]
[1727097524442,1.3805,143.0,142.93,3.4986]
[1727097524950,1.3805,143.0,142.92,15.2688]
[1727097524951,13.1505,143.0,142.92,15.2688]
[1727097525140,13.1505,143.0,142.9,16.0368]
[1727097525343,1.3488,142.99,142.9,16.0368]
[1727097525539,3.4987,142.93,142.91,3.499]
[1727097525745,3.4987,142.93,142.9,16.0368]
[1727097525746,11.77,142.98,142.9,16.0368]
[1727097525943,11.77,142.96,142.88,11.77]
[1727097526153,3.4995,142.9,142.86,11.77]
[1727097527751,3.4995,142.9,142.88,3.4999]
[1727097528959,3.4995,142.9,142.87,3.5001]
[1727097529250,3.4997,142.89,142.86,11.77]
[1727097529455,3.4997,142.89,142.86,15.2703]
[1727097530756,3.4997,142.89,142.87,3.5001]
[1727097534852,3.4991,142.92,142.89,3.4995]
[1727097535357,1.4075,142.95,142.89,3.4995]
[1727097535656,3.4992,142.91,142.89,3.4995]
[1727097542065,1.4075,142.95,142.88,15.2698]
[1727097542267,11.77,142.94,142.86,11.77]
[1727097543259,3.4995,142.9,142.88,3.4998]
[1727097543462,11.77,142.94,142.86,11.77]
[1727097543664,1.4075,142.95,142.85,4.1552]
[1727097543665,1.4075,142.95,142.88,11.77]
[1727097544161,1.4075,142.95,142.89,3.4995]
[1727097544959,3.4991,142.92,142.9,3.4994]
[1727097545157,1.3488,142.99,142.91,11.77]
[1727097545660,1.3488,142.99,142.93,3.4986]
[1727097545661,3.4981,142.96,142.93,3.4986]
[1727097545859,3.4981,142.96,142.91,11.77]
[1727097547167,3.4981,142.96,142.93,3.4985]
[1727097547676,3.4978,142.97,142.93,11.77]
[1727097548167,1.4548,143.03,142.95,11.77]
[1727097548364,1.4548,143.03,142.96,11.77]
[1727097548967,1.4548,143.03,142.98,11.77]
[1727097549374,3.4966,143.02,142.99,3.497]
[1727097549871,1.4548,143.03,142.98,15.2673]
[1727097550368,1.4548,143.03,142.96,11.77]
[1727097550569,1.4548,143.03,142.97,3.4976]
[1727097550768,1.4548,143.03,142.92,4.2203]
[1727097550964,13.2248,143.03,142.92,15.9903]
[1727097551167,13.2248,143.03,142.95,3.498]
[1727097551471,13.2248,143.03,142.92,15.9903]
[1727097551666,11.77,143.01,142.93,3.4986]
[1727097551870,15.28850948,143.01,142.92,15.9903]
[1727097552473,3.4981,142.96,142.93,3.4985]
[1727097553277,3.4978,142.97,142.92,15.9903]
[1727097554167,3.4975,142.98,142.95,3.4981]
[1727097555875,3.4977,142.97,142.95,3.4981]
[1727097556174,11.77,143.02,142.96,3.498]
[1727097556376,3.4976,142.98,142.92,15.9903]
[1727097556575,11.77,143.02,142.92,15.9903]
[1727097556776,11.77,143.0,142.92,1.3741]
[1727097557075,11.77,142.98,142.9,11.77]
[1727097557376,11.77,142.98,142.92,3.4988]
[1727097558581,3.4982,142.96,142.93,3.4985]
[1727097558781,1.4395,142.99,142.92,11.77]
[1727097559077,3.4975,142.98,142.95,3.498]
[1727097559775,1.468,143.01,142.94,11.77]
[1727097559970,1.4548,143.03,142.96,11.77]
[1727097560472,3.4974,142.99,142.96,15.2678]
[1727097561081,3.4975,142.98,142.96,15.2678]
[1727097561275,11.77,143.02,142.94,11.77]
[1727097561476,11.77,143.02,142.92,11.77]